Cogmind - Beta 10 @@@ ROGUE MODE // 2020.09.17 @ 20:30:15 Player: UlyssesB Result: Destroyed by D-53 Grenadier with Mini Grenade Launcher Performance ------------- Evolutions (0) 0 Regions Visited (2) 400 Robots Destroyed (25) 125 Value Destroyed (295) 295 Prototype IDs (4) 80 Alien Tech Used (0) 0 Bonus (0) 0 TOTAL SCORE: 900 Bonus ------- None Cogmind --------- Core Integrity 0/250 Matter 40/300 Energy 46/100 System Corruption 5% Temperature Cool (0) Movement Walking (180) Ox2 Location -10/Mines Parts ------- > --- POWER (1) -------- (None) > --- PROPULSION (2) --- Aluminum Leg Aluminum Leg > --- UTILITY (2) ------ Medium Storage Unit High-capacity Storage Unit > --- WEAPON (2) ------- Particle Gun > --- INVENTORY (16) --- Small Storage Unit Weapon Shielding Medium Laser Light Assault Rifle Light Cannon Plasma Cutter Hammer Peak State ------------ > --- POWER ------------ Light Ion Engine > --- PROPULSION ------- Aluminum Leg Aluminum Leg > --- UTILITY ---------- Small Storage Unit Small Storage Unit > --- WEAPON ----------- Assault Rifle Assault Rifle > --- INVENTORY -------- Light Treads Light Treads Compact Wheel High-capacity Storage Unit Medium Laser Particle Gun Grenade Launcher Plasma Cutter [Rating: 8] Favorites ----------- Power Light Ion Engine Engine Light Ion Engine Propulsion Aluminum Leg Treads Light Treads Leg Aluminum Leg Wheel Compact Wheel Utility Small Storage Unit Storage Small Storage Unit Weapon Assault Rifle Ballistic Gun Assault Rifle Ballistic Cannon Light Cannon Launcher Grenade Launcher Impact Weapon Hammer Build | -11 -10 -10 ------- Run | Scr Mat Min Slots Evolved . | . . . Power . | . . . Propulsion . | . . . Utility . | . . . Weapon . | . . . Parts Attached 30 | . 18 12 Power . | . . . Engine . | . . . Core . | . . . Reactor . | . . . Propulsion 10 | . 6 4 Treads 5 | . 3 2 Leg 2 | . . 2 Wheel 3 | . 3 . Hover . | . . . Flight . | . . . Utility 3 | . 3 . Device . | . . . Storage 3 | . 3 . Processor . | . . . Hackware . | . . . Protection . | . . . Artifact . | . . . Weapon 17 | . 9 8 Energy Gun 1 | . . 1 Energy Cannon . | . . . Ballistic Gun 6 | . 4 2 Ballistic Cannon 2 | . . 2 Launcher 7 | . 4 3 Special Weapon . | . . . Impact Weapon 1 | . 1 . Slashing Weapon . | . . . Piercing Weapon . | . . . Special Melee Weapon . | . . . Unidentified Prototypes . | . . . Parts Lost 9 | . . 9 Power 1 | . . 1 Propulsion 4 | . . 4 Utility . | . . . Weapon 4 | . . 4 Highest Loss Streak 5 | . . 5 Average Slot Usage (%) 93 | . 95 83 Engine 13 | . 14 7 Treads 8 | . 7 14 Leg 11 | . 12 1 Wheel 7 | . 7 7 Storage 23 | . 23 28 Ballistic Gun 25 | . 27 9 Impact Weapon 1 | . . 7 Naked Turns . | . . . Heaviest Build 48 | 11 47 48 Greatest Support 40 | 20 20 40 Greatest Overweight (x) 14 | . 2 14 Average Overweight (x) 1 | . . 2 Largest Inventory Capacity 16 | . 16 16 Average Capacity 11 | . 11 16 Most Carried 15 | . 15 15 Average Carried 10 | . 9 13 Final Capacity 16 | 6 16 16 Final Carried 15 | 6 15 7 Class Distribution -------------------- 100% | Mutant Dominant Class ---------------- Mutant | -10/Materials Mutant | -10/Mines Resources | -11 -10 -10 ----------- Run | Scr Mat Min Matter Collected 608 | 200 408 . Remotely . | . . . Salvage Created 460 | . 435 25 Parts 21 | . 21 . Haulers Intercepted 2 | . 2 . Recyclers Shooed . | . . . Parts Field Recycled . | . . . Retrieved Matter . | . . . Parts Self-Destructed . | . . . Prevented . | . . . Kills | -11 -10 -10 ------- Run | Scr Mat Min Combat Hostiles Destroyed 22 | . 12 10 Guns 7 | . 7 . AOE 15 | . 5 10 Classes Destroyed 5 | . 4 1 Worker 1 | . 1 . Hauler 2 | . 2 . Swarmer 6 | . 6 . Grunt 6 | . 6 . Assembled 10 | . . 10 Best Kill Streak 10 | . 7 10 Combat Bots Only 10 | . 6 10 Max Kills in Single Turn 3 | . 3 2 Gunslinging . | . . . Exploded 3 | . 3 2 Melee . | . . . Uniques/NPCs Destroyed . | . . . Combat | -11 -10 -10 -------- Run | Scr Mat Min Damage Taken 1487 | . 402 1085 Core 254 | . 60 194 Absorbed by Shields . | . . . Core Remaining (%) 100 | 100 . . Volleys Fired 58 | . 43 15 Largest 2 | . 2 2 Hottest 70 | . 40 70 Shots Fired 99 | . 81 18 Gun 78 | . 76 2 Cannon 6 | . . 6 Launcher 15 | . 5 10 Special . | . . . Kinetic 84 | . 76 8 Thermal . | . . . Explosive 15 | . 5 10 Electromagnetic . | . . . Robot Hit Streak 16 | . 16 8 Robot Miss Streak 2 | . 2 1 Penetration Max . | . . . Secondary Targets . | . . . Shots Hit Robots 72 | . 58 14 Core Hits 47 | . 26 21 Critical Hits 2 | . 1 1 Critical Kills . | . . . Critical Parts Destroyed 2 | . 1 1 Melee Attacks 3 | . 3 . Impact 3 | . 3 . Slashing . | . . . Piercing . | . . . Sneak Attacks . | . . . Combat Hostiles . | . . . Follow-up Attacks . | . . . Damage Inflicted 1987 | . 1125 862 Guns 700 | . 700 . Cannons 83 | . . 83 Explosions 1196 | . 417 779 Melee . | . . . Ramming 8 | . 8 . Kinetic 783 | . 700 83 Thermal . | . . . Explosive 1196 | . 417 779 Electromagnetic . | . . . Impact . | . . . Slashing . | . . . Piercing . | . . . Highest Corruption 5 | . 3 5 Average Corruption 3 | . 2 3 Corruption Purged . | . . . Effects 15 | . 11 4 Message Errors 3 | . 1 2 Matter Fused 1 | . . 1 Heat Flow Errors 1 | . 1 . Energy Discharges 3 | . 3 . Parts Rejected 1 | . . 1 Data Loss (minor) 2 | . 2 . Targeting Errors 4 | . 4 . Overload Shots . | . . . Overflow Damage 95 | . 29 66 Projectiles . | . . . Explosions 95 | . 29 66 Melee . | . . . Knockbacks 1 | . . 1 Impact . | . . . Kinetic 1 | . . 1 Secondary . | . . . Self-Inflicted Damage 140 | . 39 101 Shots 5 | . 2 3 Rammed 1 | . 1 . Targets Rammed 1 | . 1 . Kicked . | . . . Crushed . | . . . Highest Temperature 144 | . 144 10 Average Temperature 44 | . 46 10 Received Heat Transfer 179 | . 159 20 Siege Activations . | . . . Robots Corrupted . | . . . Combat Hostiles . | . . . Parts Fried . | . . . Impact Corruptions . | . . . Robots Melted . | . . . Combat Hostiles . | . . . Parts Melted . | . . . Heat Transferred . | . . . Parts Sabotaged . | . . . Parts Stolen . | . . . Parts Stripped . | . . . Power Chain Reactions . | . . . Missiles Intercepted . | . . . Alert | -11 -10 -10 ------- Run | Scr Mat Min Peak Influence 347 | . 347 110 Initial 110 | . . 110 Average 119 | . 122 92 Maximum Alert Level 1 | . 1 . Low Security (%) 74 | . 70 100 Level 1 25 | . 29 . Level 2 . | . . . Level 3 . | . . . Level 4 . | . . . Level 5 . | . . . High Security . | . . . Max Security . | . . . Squads Dispatched 2 | . 2 . Investigation . | . . . Extermination . | . . . Reinforcement 2 | . 2 . Assault . | . . . Garrison . | . . . Intercept . | . . . Construction Impeded . | . . . Haulers Reinforced . | . . . Stealth | -11 -10 -10 --------- Run | Scr Mat Min Distress Signals 2 | . 2 . Communications Jammed . | . . . Distress Signals . | . . . Times Spotted 41 | . 23 18 Peak Tracking Total 9 | . 3 9 Tactical Retreats 3 | . 1 2 Traps | -11 -10 -10 ------- Run | Scr Mat Min Traps Triggered 2 | . 2 . Indirectly . | . . . Trap Hack Attempts . | . . . Triggered . | . . . Disarmed . | . . . Reprogrammed . | . . . Reused . | . . . Traps Extracted . | . . . Installed . | . . . Triggered . | . . . Machines | -11 -10 -10 ---------- Run | Scr Mat Min Machines Disabled . | . . . Max in Single Turn . | . . . Machines Sabotaged . | . . . Garrisons Compromised . | . . . Overloaded Fab Kills . | . . . Fab Network Shutdowns . | . . . Hacking | -11 -10 -10 --------- Run | Scr Mat Min Machines Accessed 6 | . 6 . Terminals 6 | . 6 . Fabricators . | . . . Repair Stations . | . . . Recycling Units . | . . . Scanalyzers . | . . . Garrison Access . | . . . Total Hacks 23 | . 23 . Successful 12 | . 12 . Failed 11 | . 11 . Catastrophic . | . . . Database Lockouts . | . . . Manual 15 | . 15 . Terminals 23 | . 23 . Fabricators . | . . . Repair Stations . | . . . Recycling Units . | . . . Scanalyzers . | . . . Garrison Access . | . . . Terminal Hacks 10 | . 10 . Robot Analysis 2 | . 2 . Prototype ID Bank 2 | . 2 . Alert Level 1 | . 1 . Recall Reinforcements 1 | . 1 . Hauler Manifests 1 | . 1 . Registered Components 1 | . 1 . Registered Prototypes 1 | . 1 . Zone Layout 1 | . 1 . Fabricator Hacks . | . . . Repair Station Hacks . | . . . Recycling Unit Hacks . | . . . Scanalyzer . | . . . Garrison Access Hacks . | . . . Unauthorized Hacks 2 | . 2 . Terminals 2 | . 2 . Botnet 2 | . 2 . Fabricators . | . . . Repair Stations . | . . . Recycling Units . | . . . Scanalyzers . | . . . Garrison Access . | . . . Data Cores Recovered . | . . . Used . | . . . Hacking Detections 6 | . 6 . Full Trace Events . | . . . Feedback Events . | . . . Feedback Blocked . | . . . Robot Schematics Acquired . | . . . Robots Built . | . . . Matter . | . . . Time . | . . . Total Robot Build Rating . | . . . Part Schematics Acquired . | . . . Parts Built . | . . . Matter . | . . . Time . | . . . Total Part Build Rating . | . . . Parts Repaired . | . . . Time . | . . . Parts Recycled . | . . . Recycled Matter . | . . . Retrieved Matter . | . . . Retrieved Components . | . . . Parts Scanalyzed . | . . . Part Schematics Acquired . | . . . Parts Damaged . | . . . Bothacking | -11 -10 -10 ------------ Run | Scr Mat Min Used RIF Installer . | . . . Robots Hacked . | . . . Non-combat . | . . . Combat . | . . . Robot Hacks Applied . | . . . Relay Couplers Released . | . . . Robots Rewired . | . . . Allies Hacked . | . . . Hacks Repelled . | . . . Allies | -11 -10 -10 -------- Run | Scr Mat Min Total Allies . | . . . Largest Group . | . . . Highest-Rated Group . | . . . Highest-Rated Ally . | . . . Total Orders . | . . . Ally Attacks . | . . . Total Damage . | . . . Kills . | . . . Allies Corrupted . | . . . Allies Melted . | . . . Intel | -11 -10 -10 ------- Run | Scr Mat Min Robot Analysis Total 2 | . 2 . Derelict Logs Recovered 1 | . . 1 Drone Launches . | . . . Drone Recoveries . | . . . Exploration | -11 -10 -10 ------------- Run | Scr Mat Min Turns Passed 1299 | . 1141 158 Spaces Moved 851 | 1 768 82 Core 1 | . . 1 Treads 39 | . 28 11 Legs 399 | 1 398 . Wheels 412 | . 342 70 Hover . | . . . Flight . | . . . Fastest Speed 120 | 120 120 120 Average Speed 124 | 120 122 136 Slowest Speed 750 | 120 200 750 Overloaded Moves . | . . . Propulsion Burnouts . | . . . Robots Hopped . | . . . Cave-ins Triggered . | . . . Exploration Rate (%) 40 | 1 96 25 Regions Visited 2 Branch Regions 1 Pre-discovered Areas . | . . . Known Exits Taken . | . . . Unknown Exits Taken 2 | 1 1 . Scrap Searched . | . . . Spaces Dug 19 | . 8 11 Terrain Destroyed 93 | . 32 61 Melee 1 | . 1 . Projectile . | . . . AOE 92 | . 31 61 Terrain Rammed . | . . . Walls Destroyed . | . . . Machines Disabled . | . . . Actions | -11 -10 -10 --------- Run | Scr Mat Min Total 982 | . 873 109 Wait 23 | . 23 . Move 849 | . 767 82 Hop . | . . . Pick Up 13 | . 13 . Fast Attach 1 | . 1 . Attach 8 | . . 8 Detach . | . . . Swap 21 | . 17 4 Drop 5 | . 5 . Fire 58 | . 43 15 Melee 3 | . 3 . Ram 1 | . 1 . Kick . | . . . Crush . | . . . Escape Stasis . | . . . Rewire . | . . . Trap . | . . . Miscellaneous . | . . . Route ------- -11/Scrapyard -10/Materials (discovered 4 exits: [*Mat x3] / [*Min]) -10/Mines History --------- Turn | Location | Event 1 | -11/Scrapyard | Discovered new exit (range 0) 1 | -11/Scrapyard | Entered Materials 81 | -10/Materials | Discovered new exit (range 8) 219 | -10/Materials | Discovered new exit (range 8) 302 | -10/Materials | Build established: Mutant 324 | -10/Materials | Discovered new exit (range 12) 610 | -10/Materials | Discovered new exit (range 13) 1142 | -10/Materials | Entered Mines 1208 | -10/Mines | Learned Materials security intel 1211 | -10/Mines | Assembled infested the area 1247 | -10/Mines | Core integrity fell below 50% 1264 | -10/Mines | Core integrity fell below 20% 1282 | -10/Mines | Lost 5 parts (1p2n2w) 1283 | -10/Mines | Destroyed 10 combat bots 1300 | -10/Mines | Destroyed by D-53 Grenadier with Mini Grenade Launcher Last Messages --------------- 01267_ as-72940 destroyed. 01267_ U-05 Engineer lays Concrete. 01270_ UG RAJHIJ 8SX9UDPSC46TRJO E/LZF 01275_ R-06 Scavenger destroyed. 01277_ U-05 Engineer builds a Wall. 01277_ as-96556 knocked back. 01280_ U-05 Engineer destroyed. 01280_ as-96556 destroyed. 01285_ Lgt. Treads destroyed. 01287_ The unstable cave ceiling collapses. 01293_ Grenade Launcher destroyed. 01293_ Lgt. Treads destroyed. 01294_ D-53 Grenadier suffers critical hit. 01294_ Destroyed Unknown Hover Unit. 01295_ The unstable cave ceiling collapses. 01296_ Lgt. Cannon destroyed. 01299_ D-53 Grenadier destroyed. Map ----- +----------------------------------------------------+ | ?????????# #??# #???????????????????????????? | | ?????????# #### #???????????????????????????? | | ?????????# #???????????????????????????? | | ?????????# # ## #???????????????????????????? | | ?????????# # ## #???????????????????????????? | | ?????????####### ## #???????????????????????????? | | ???????????????# ## #???????????????????????????? | | ???????????????# ## #???????????????????????????? | | ??????????????? ## #???????????????????????????? | | ???????????????#### #???????????????????????????? | | ????????????????### ##??????????????????????????? | | ???????????????## %##?????????????###?????????? | | ??????????????## """!=##????????#### #####?????? | | ??????????##### """ ###???#### # #?????? | | ?????????## """ ##### ### # | | ?????????# [% # | | ????????# % # ? | | ????????# #### #### #???? | | ????????# #???## ##??# # ? | | ????????#?? ???????## #???# #???? | | ?????????????????????# ##### ## #? | | ?????????????????????## ## ##? %#?? | | ????????????????????## ##??# |#?? | | ????????????????????# d ##????# %#?? | | ????????????????????# #?????## #?? | | ????????????????????# @ #??????## #? | | ????????????????????# #?????# #? | | ????????????????????# #?????## # | | ????????????????????## # #???????### | | ?????????????????????## ## #??????????# | | ??????????????????????##### ##?? #??????????? | | ??????????????????????????####???? ???????????? | | ??????????????????????????????????? ??????????? | | ???????????????????????????????????? ??????????? ? | | ????????????????????????????????????? ???????????? | | ??????????????????????????????????????#??????????? | | ?????????????????????????????????????????????????? | | ?????????????????????????????????????????????????? | | ?????????????????????????????????????????????????? | | ?????????????????????????????????????????????????? | | ?????????????????????????????????????????????????? | | | | | | | | | | | | | | | | | | | +----------------------------------------------------+ Best States ------------- Heat Dissipation 25 Energy Generation 10 Energy Capacity 125 Matter Stores 300 Matter Capacity 300 Sight Range 16 Terrain Scan Density 10 Evasion (%) 40 Recoil Reduction 2 Item Schematics ----------------- None Robot Schematics ------------------ None Fabricated ------------ Nothing Alien Tech Used ----------------- None Achievements -------------- None Challenges ------------ None Game ------ Seed ProtonCatalystTriangulator Manual? 0 Play Time 00:19:31 Cumulative 168.8 hours Start 2020.09.17 @ 20:11:42 End 2020.09.17 @ 20:30:15 Sessions 1 Manual Loads 0 Difficulty Rogue Special Mode None Game No. 107 Rogue 107 Adventurer 0 Explorer 0 Win Type - Total 6 Types 4/0/1/1/0/0/0/0/0 Lore% 70 Gallery% 66 Achievement% 51 Wizard Run 0 Options --------- ASCII 1 Keyboard 0 Movement Mouse Keybinds 0 Fullscreen 2 Font 12/Smallcaps Map View 76x56 Tactical HUD 1 Map Filters NONE Filters NONE Steam 0 RUN: 54fa2200-393d-4831-a8da-fdca0b9a3bc1